Cogmind - Beta 13 @@@ ROGUE MODE // 2024.04.29 @ 22:28:32 Player: Jason Result: Destroyed by as-72365 with Assembled Rifle Performance ------------- Evolutions (0) 0 Regions Visited (2) 400 Robots Destroyed (8) 40 Value Destroyed (156) 156 Prototype IDs (0) 0 Alien Tech Used (0) 0 Bonus (0) 0 TOTAL SCORE: 596 Bonus ------- None Cogmind --------- Core Integrity 0/250 Matter 260/300 Energy 121/125 System Corruption 1% Temperature Cool (2) Movement Walking (120) Location -10/Mines Parts ------- > --- POWER (1) -------- Light Ion Engine > --- PROPULSION (2) --- Aluminum Leg Aluminum Leg > --- UTILITY (2) ------ Small Storage Unit Signal Interpreter > --- WEAPON (2) ------- Medium Laser Assault Rifle > --- INVENTORY (8) ---- Light Treads Compact Wheel Sensor Array Power Shielding Light Armor Plating Small Laser Peak State ------------ > --- POWER ------------ Improved Ion Engine > --- PROPULSION ------- Wheel Compact Wheel > --- UTILITY ---------- Small Storage Unit Signal Interpreter > --- WEAPON ----------- Beam Rifle Heavy Assault Rifle > --- INVENTORY -------- Light Ion Engine Aluminum Leg Aluminum Leg Compact Wheel Sensor Array Light Armor Plating Small Laser Assault Rifle [Rating: 10] Favorites ----------- Power Light Ion Engine Engine Light Ion Engine Propulsion Compact Wheel Treads Light Treads Leg Aluminum Leg Wheel Compact Wheel Utility Small Storage Unit Storage Small Storage Unit Processor Signal Interpreter Weapon Assault Rifle Energy Gun Medium Laser Ballistic Gun Assault Rifle Build | -11 -10 -10 ------- Run | Yrd Mat Min Slots Evolved . | . . . Power . | . . . Propulsion . | . . . Utility . | . . . Weapon . | . . . Parts Attached 19 | 8 1 10 Power 3 | 1 . 2 Engine 3 | 1 . 2 Core . | . . . Reactor . | . . . Propulsion 6 | 3 . 3 Treads 1 | . . 1 Leg 3 | 1 . 2 Wheel 2 | 2 . . Hover . | . . . Flight . | . . . Utility 2 | 1 1 . Device . | . . . Storage 1 | 1 . . Processor 1 | . 1 . Hackware . | . . . Protection . | . . . Artifact . | . . . Weapon 8 | 3 . 5 Energy Gun 5 | 2 . 3 Energy Cannon . | . . . Ballistic Gun 3 | 1 . 2 Ballistic Cannon . | . . . Launcher . | . . . Special Weapon . | . . . Impact Weapon . | . . . Slashing Weapon . | . . . Piercing Weapon . | . . . Special Melee Weapon . | . . . Unidentified Prototypes . | . . . Parts Lost 6 | . . 6 Power 2 | . . 2 Propulsion 2 | . . 2 Utility . | . . . Weapon 2 | . . 2 Highest Loss Streak 5 | . . 5 To Critical Strikes . | . . . Average Slot Usage (%) 86 | . 87 85 Engine 10 | . 14 8 Wheel 21 | . 28 17 Storage 14 | . 14 14 Processor 9 | . 2 14 Energy Gun 13 | . 14 13 Ballistic Gun 14 | . 14 14 Naked Turns . | . . . Heaviest Build 18 | 12 12 18 Greatest Support 26 | 26 26 26 Greatest Overweight (x) 3 | 3 . 2 Average Overweight (x) . | . . . Largest Inventory Capacity 8 | 8 8 8 Average Capacity 7 | 7 8 8 Most Carried 8 | 4 6 8 Average Carried 5 | 2 5 7 Final Capacity 8 | 8 8 8 Final Carried 6 | 4 6 6 Class Distribution -------------------- 71% | Mutant 28% | Scavenger-Mutant Dominant Class ---------------- Mutant | -10/Materials Scavenger-Mutant | -10/Mines Resources | -11 -10 -10 ----------- Run | Yrd Mat Min Matter Collected 424 | 212 64 148 Remotely . | . . . Salvage Created 205 | . 13 192 Parts 19 | . 4 15 Haulers Intercepted . | . . . Recyclers Shooed 1 | . . 1 Parts Field Recycled . | . . . Retrieved Matter . | . . . Parts Self-Destructed . | . . . Prevented . | . . . Kills | -11 -10 -10 ------- Run | Yrd Mat Min Combat Hostiles Destroyed 8 | . . 8 Guns 8 | . . 8 Classes Destroyed 4 | . 1 3 Watcher 1 | . 1 . Swarmer 5 | . . 5 Sentry 2 | . . 2 Assembled 1 | . . 1 Best Kill Streak 3 | . 1 3 Combat Bots Only 3 | . . 3 Max Kills in Single Turn 1 | . 1 1 Gunslinging . | . . . Exploded . | . . . Melee . | . . . Uniques/NPCs Destroyed . | . . . Combat | -11 -10 -10 -------- Run | Yrd Mat Min Hostile Shots Fired 71 | . . 71 Missed 14 | . . 14 Damage Taken 885 | . . 885 Core 257 | . . 257 Absorbed by Shields . | . . . Core Remaining (%) 100 | 100 . . Volleys Fired 31 | . 3 28 Largest 2 | . 2 2 Hottest 79 | . 70 79 Shots Fired 60 | . 6 54 Gun 60 | . 6 54 Cannon . | . . . Launcher . | . . . Special . | . . . Kinetic 31 | . 3 28 Thermal 29 | . 3 26 Explosive . | . . . Electromagnetic . | . . . Robot Hit Streak 7 | . 1 7 Robot Miss Streak 4 | . 4 4 Penetration Max . | . . . Secondary Targets 3 | . . 3 Max Gunslinging Chain 1 | . . 1 Shots Hit Robots 35 | . 1 34 Core Hits 13 | . 1 12 Critical Kills . | . . . Critical Parts Destroyed . | . . . Critical Strikes 2 | . . 2 Burn 2 | . . 2 Melee Attacks . | . . . Impact . | . . . Slashing . | . . . Piercing . | . . . Sneak Attacks . | . . . Combat Hostiles . | . . . Follow-up Attacks . | . . . Damage Inflicted 473 | . 13 460 Guns 473 | . 13 460 Cannons . | . . . Explosions . | . . . Melee . | . . . Ramming . | . . . Kinetic 227 | . . 227 Thermal 246 | . 13 233 Explosive . | . . . Electromagnetic . | . . . Impact . | . . . Slashing . | . . . Piercing . | . . . Highest Corruption 1 | . 1 1 Average Corruption 1 | . 1 1 Corruption Purged . | . . . Corruption Blocked . | . . . Effects 4 | . 1 3 Message Errors 3 | . 1 2 Weapon Failures 1 | . . 1 Overload Shots . | . . . Overflow Damage . | . . . Projectiles . | . . . Explosions . | . . . Melee . | . . . Knockbacks . | . . . Impact . | . . . Kinetic . | . . . Secondary . | . . . Self-Inflicted Damage . | . . . Shots . | . . . Rammed . | . . . Targets Rammed . | . . . Kicked . | . . . Crushed . | . . . Highest Temperature 166 | . 18 166 Average Temperature 51 | . 9 56 Received Heat Transfer 74 | . . 74 Siege Activations . | . . . Robots Corrupted . | . . . Combat Hostiles . | . . . Parts Fried . | . . . Impact Corruptions . | . . . Robots Melted . | . . . Combat Hostiles . | . . . Parts Melted 1 | . . 1 Heat Transferred 802 | . 37 765 Parts Sabotaged . | . . . Parts Stolen . | . . . Parts Stripped . | . . . Power Chain Reactions . | . . . Alert | -11 -10 -10 ------- Run | Yrd Mat Min Peak Influence 239 | . 37 239 Initial 14 | . . 14 Average 96 | . 18 170 Maximum Alert Level 1 | . . 1 Low Security (%) 87 | 100 100 75 Level 1 12 | . . 24 Level 2 . | . . . Level 3 . | . . . Level 4 . | . . . Level 5 . | . . . High Security . | . . . Max Security . | . . . Squads Dispatched 1 | . 1 . Investigation . | . . . Extermination . | . . . Reinforcement 1 | . 1 . Assault . | . . . Garrison . | . . . Intercept . | . . . Searches Triggered . | . . . Construction Impeded . | . . . Haulers Reinforced . | . . . Active Scanning Responses . | . . . Cargo Convoy Interrupts . | . . . Stealth | -11 -10 -10 --------- Run | Yrd Mat Min Distress Signals . | . . . Communications Jammed . | . . . Distress Signals . | . . . Times Spotted 25 | . 2 23 Peak Tracking Total 12 | . 1 12 Tactical Retreats 3 | . . 3 Traps | -11 -10 -10 ------- Run | Yrd Mat Min Traps Triggered 1 | . 1 . Indirectly . | . . . Trap Hack Attempts . | . . . Triggered . | . . . Disarmed . | . . . Reprogrammed . | . . . Reused . | . . . Traps Extracted . | . . . Installed . | . . . Triggered . | . . . Machines | -11 -10 -10 ---------- Run | Yrd Mat Min Machines Disabled . | . . . Max in Single Turn . | . . . Machines Repaired . | . . . Machines Dismantled . | . . . Machines Sabotaged . | . . . Overloaded Fab Kills . | . . . Hacking | -11 -10 -10 --------- Run | Yrd Mat Min Machines Accessed 1 | . 1 . Terminals 1 | . 1 . Fabricators . | . . . Repair Stations . | . . . Recycling Units . | . . . Scanalyzers . | . . . Garrison Access . | . . . Total Hacks 2 | . 2 . Successful . | . . . Failed 2 | . 2 . Catastrophic . | . . . Database Lockouts . | . . . Manual . | . . . Terminals 2 | . 2 . Fabricators . | . . . Repair Stations . | . . . Recycling Units . | . . . Scanalyzers . | . . . Garrison Access . | . . . Terminal Hacks . | . . . Fabricator Hacks . | . . . Repair Station Hacks . | . . . Recycling Unit Hacks . | . . . Scanalyzer . | . . . Garrison Access Hacks . | . . . Unauthorized Hacks . | . . . Terminals . | . . . Fabricators . | . . . Repair Stations . | . . . Recycling Units . | . . . Scanalyzers . | . . . Garrison Access . | . . . Data Cores Recovered . | . . . Used . | . . . Hacking Detections 1 | . 1 . Full Trace Events . | . . . Feedback Events . | . . . Feedback Blocked . | . . . Robot Schematics Acquired . | . . . Robots Built . | . . . Authchips . | . . . Time . | . . . Total Robot Build Rating . | . . . Part Schematics Acquired . | . . . Parts Built . | . . . Authchips . | . . . Time . | . . . Total Part Build Rating . | . . . Parts Repaired . | . . . Time . | . . . Parts Recycled . | . . . Recycled Matter . | . . . Retrieved Matter . | . . . Retrieved Components . | . . . Parts Scanalyzed . | . . . Part Schematics Acquired . | . . . Parts Damaged . | . . . Bothacking | -11 -10 -10 ------------ Run | Yrd Mat Min Used RIF Installer . | . . . Robots Hacked . | . . . Non-combat . | . . . Combat . | . . . Robot Hacks Applied . | . . . Relay Couplers Released . | . . . Fabnet Peak Effective % . | . . . Robots Rewired . | . . . Allies Hacked . | . . . Hacks Repelled . | . . . Allies | -11 -10 -10 -------- Run | Yrd Mat Min Total Allies . | . . . Largest Group . | . . . Highest-Rated Group . | . . . Highest-Rated Ally . | . . . Total Orders . | . . . Ally Attacks . | . . . Total Damage . | . . . Kills . | . . . Allies Corrupted . | . . . Allies Melted . | . . . Intel | -11 -10 -10 ------- Run | Yrd Mat Min Robot Analysis Total . | . . . Derelict Logs Recovered 1 | . . 1 Drone Launches . | . . . Drone Recoveries . | . . . Exploration | -11 -10 -10 ------------- Run | Yrd Mat Min Turns Passed 704 | 85 246 373 Spaces Moved 478 | 71 179 228 Core 52 | 15 . 37 Treads 11 | . . 11 Legs 13 | 5 . 8 Wheels 402 | 51 179 172 Hover . | . . . Flight . | . . . Fastest Speed 50 | 50 90 90 Average Speed 98 | 98 90 104 Slowest Speed 200 | 200 90 160 Overloaded Moves . | . . . Propulsion Burnouts . | . . . Robots Hopped . | . . . Cave-ins Triggered . | . . . Exploration Rate (%) 18 | 4 25 27 Regions Visited 2 Branch Regions 1 Pre-discovered Areas 1 | . . 1 Known Exits Taken 1 | . 1 . Unknown Exits Taken 1 | 1 . . Scrap Searched . | . . . Spaces Dug . | . . . Terrain Destroyed . | . . . Melee . | . . . Projectile . | . . . AOE . | . . . Terrain Rammed . | . . . Walls Destroyed . | . . . Machines Disabled . | . . . Actions | -11 -10 -10 --------- Run | Yrd Mat Min Total 647 | 82 257 308 Wait 110 | . 73 37 Move 476 | 70 178 228 Hop . | . . . Pick Up 7 | 2 2 3 Fast Attach 11 | 8 1 2 Attach 5 | . . 5 Detach 3 | 2 . 1 Swap 3 | . . 3 Drop 1 | . . 1 Fire 31 | . 3 28 Melee . | . . . Ram . | . . . Kick . | . . . Crush . | . . . Escape Stasis . | . . . Rewire . | . . . Trap . | . . . Miscellaneous . | . . . Route ------- -11/Scrapyard -10/Materials -10/Mines History --------- Turn | Location | Event 16 | -11/Scrapyard | Discovered new exit (range 15) 86 | -11/Scrapyard | Entered Materials 313 | -10/Materials | Build established: Mutant 316 | -10/Materials | Discovered new exit (range 16) 331 | -10/Materials | Identified exit to Mines 332 | -10/Materials | Entered Mines 342 | -10/Mines | Met a Derelict bent on vengeance 473 | -10/Mines | Learned location of Storage (-9) 519 | -10/Mines | Assembled infested the area 569 | -10/Mines | Core integrity fell below 50% 604 | -10/Mines | Core integrity fell below 20% 609 | -10/Mines | Lost 5 parts (1p2n2w) 705 | -10/Mines | Destroyed by as-72365 with Assembled Rifle Last Messages --------------- 00589_ The unstable cave ceiling collapses. 00608_ System corrupted: Sml. Laser failed to cycle. 00609_ R-06 Scavenger collects Lgt. Armor Plating. 00613_ The unstable cave ceiling collapses. 00613_ R-06 Scavenger collects Heat Sink. 00617_ as-46990 destroyed. 00619_ The unstable cave ceiling collapses. 00629_ Acquired 2 matter. 00631_ The unstable cave ceiling collapses. 00638_ R-06 Scavenger knocked back. 00646_ R-06 Scavenger destroyed. 00650_ Acquired 10 matter. 00654_ Acquired Med. Laser. 00658_ Acquired 10 matter. 00663_ Acquired Lgt. Treads. 00671_ The unstable cave ceiling collapses. 00675_ SCC6&UC73I/BCWN,STIA 00689_ Acquired Power Shielding. Map ----- +----------------------------------------------------+ | | | | | | | | | | | | | | | | | | | | | | | | | | | | | | | | | ???????????????????????????????????????????? | | ???????????????????????????????????????????? | | ???????????????????????????????????????????? | | ???????????????????????????????????????????? | | ????????????????######?????????????????????? | | ???????????????##"!!"##????????????????????? | | ???????????????#""! ""#????????????????????? | | ???????????????# #????????????????????? | | ???????????????## #######???????????????? | | ???????????????###/@## #???????????????? | | ???????????????# ! #???????????????? | | ???????????????# % #???????????????? | | ???????????????# #???????????????? | | ???????????????# #?????????????### | | ???????????????# #?????????????# | | ???????????????# #?????????????# | | ???????????????# ##????????????# | | ???????????????# ###???????????# | | ???????????????# #???????????# | | ???????????????# a #???????????# | | ???????????????# a ###??????????# | | ???????????????# #??????????# | | ???????????????##### ## ##??????????# | | ???????????????????## ## #!###??????????## | | ???????????????????### # !=###????????## | | ??????????????????## #####!% #????????# | | ??????????????????# #???####%#???????## | | ?????????????????## #?????## #??????## | | ?????????????????# #?????## #??????# | | ?????????????????# ######## ??????# | | ?????????????????# ## ####### | | ?????????????????# " | | ?????????????????#"%" % %*== ### | | ????????????????## """" # ###=%[ ##?? | +----------------------------------------------------+ Best States ------------- Heat Dissipation 25 Energy Generation 12 Energy Capacity 265 Matter Stores 300 Matter Capacity 300 Sight Range 16 Terrain Scan Density 10 Evasion (%) 55 Recoil Reduction 1 Item Schematics ----------------- None Robot Schematics ------------------ None Fabricated ------------ Nothing Alien Tech Used ----------------- None Achievements -------------- Slippery One Challenges ------------ None Game ------ Seed CloakDimensionalScrap Manual? 0 Play Time 00:11:39 Cumulative 43.0 hours Start 2024.04.29 @ 22:21:09 End 2024.04.29 @ 22:28:32 Sessions 1 Manual Loads 0 Difficulty Rogue Special Mode None Game No. 39 Rogue 39 Adventurer 0 Explorer 0 Win Type - Total 0 Types 0/0/0/0/0/0/0/0/0 Lore% 19 Gallery% 28 Achievement% 20 Wizard Run 0 Options --------- Layout 2 ASCII 0 Keyboard 1 Movement Arrows Keybinds 0 Fullscreen 2 Font 24/Smallcaps Map View 50x44 Zoom Use 0% Tactical HUD 1 Map Filters NONE Filters NONE Steam 1 RUN: 4819ae37-3381-431e-8f41-8c5d27f81f1a